bitfinex-derivatives/quotes_ETHF0:USTF0_20260118
["timestamp","ask_amount","ask_price","bid_price","bid_amount"]
[1768724934867,0.33026026,3312.1,3310.7,0.146]
[1768724935068,0.32841421,3311.9,3310.7,0.146]
[1768724948189,0.32841421,3311.9,3310.2,0.00217076]
[1768724948190,0.32841421,3311.7,3310.4,0.146]
[1768724948486,0.32841421,3311.5,3310.4,0.146]
[1768724951182,0.32841421,3311.5,3310.2,0.00217076]
[1768724967409,0.32007395,3312.1,3310.5,0.97356978]
[1768724967705,1.27599986,3312.0,3310.6,2.452]
[1768724967916,0.32007395,3312.0,3310.6,2.452]
[1768724983413,0.32007395,3312.0,3310.6,2.598]
[1768724985321,0.32007395,3312.0,3311.1,0.97340258]
[1768724987923,0.32007395,3312.0,3310.6,2.598]
[1768724988111,0.32007395,3312.0,3311.0,0.97340258]
[1768724990222,1.29347653,3312.0,3310.8,0.97340258]
[1768724990420,0.35052989,3311.9,3310.8,0.97340258]
[1768724990924,0.35052989,3311.9,3310.6,2.598]
[1768724990925,0.35052989,3311.9,3310.6,3.57140258]
[1768724991420,0.35052989,3311.9,3310.6,2.598]
[1768724991619,0.35052989,3311.7,3310.6,0.146]
[1768724993626,0.35052989,3311.7,3310.5,0.15108]
[1768724993827,0.35052989,3311.7,3310.5,1.12448258]
[1768724996330,0.35052989,3311.7,3310.7,0.97340258]
[1768724997231,0.35052989,3311.7,3310.5,0.15108]
[1768724997432,0.35052989,3311.7,3310.7,0.97340258]
[1768725001442,1.30053006,3311.6,3310.3,0.97340258]
[1768725001629,0.32712748,3311.5,3310.2,0.00217076]
[1768725001937,0.32712748,3311.5,3310.5,0.97340258]
[1768725003341,0.32712748,3311.5,3310.7,0.97340258]
[1768725004844,0.32712748,3311.9,3310.7,0.97340258]
[1768725005140,0.95536347,3311.8,3310.7,0.97340258]
[1768725005441,0.95536347,3311.7,3310.7,0.97340258]
[1768725005634,0.95536347,3311.6,3310.7,0.97340258]
[1768725005835,0.32712748,3311.9,3310.7,0.97340258]
[1768725006033,0.95523914,3311.8,3310.7,0.97340258]
[1768725006236,0.95523914,3311.7,3310.7,0.97340258]
[1768725006437,0.32712748,3311.9,3310.7,0.97340258]
[1768725006741,0.95513929,3311.8,3310.7,0.97340258]
[1768725006947,0.95513929,3311.7,3310.7,0.97340258]
[1768725007129,0.32712748,3311.9,3310.7,0.97340258]
[1768725007330,0.95506828,3311.8,3310.7,0.97340258]
[1768725007539,0.95506828,3311.7,3310.7,0.97340258]
[1768725007742,0.32712748,3311.9,3310.7,0.97340258]
[1768725007943,0.95505999,3311.8,3310.7,0.97340258]
[1768725008135,0.95505999,3311.7,3310.7,0.97340258]
[1768725008332,0.32712748,3311.9,3310.7,0.97340258]
[1768725008533,0.95499873,3311.8,3310.7,0.97340258]
[1768725008834,0.95499873,3311.7,3310.7,0.97340258]
[1768725009036,0.32712748,3311.9,3310.7,0.97340258]
[1768725009235,0.95499877,3311.8,3310.7,0.97340258]
[1768725009538,0.95499877,3311.7,3310.7,0.97340258]
[1768725009737,0.32712748,3311.9,3310.7,0.97340258]
[1768725010031,0.95495307,3311.8,3310.7,0.97340258]
[1768725010233,0.95495307,3311.7,3310.7,0.97340258]
[1768725010441,0.32712748,3311.9,3310.7,0.97340258]
[1768725010638,0.95492567,3311.8,3310.7,0.97340258]
[1768725010839,0.95492567,3311.7,3310.7,0.97340258]
[1768725011039,0.32712748,3311.9,3310.7,0.97340258]
[1768725011239,0.95492584,3311.8,3310.7,0.97340258]
[1768725011440,0.95492584,3311.7,3310.7,0.97340258]
[1768725011643,0.32712748,3311.9,3310.7,0.97340258]
[1768725011844,1.28204024,3311.8,3310.7,0.97340258]
[1768725012047,0.95491276,3311.7,3310.7,0.97340258]
[1768725012245,0.32712748,3311.8,3310.7,0.97340258]
[1768725012446,0.95491451,3311.7,3310.7,0.97340258]
[1768725012646,0.32712748,3311.8,3310.7,0.97340258]
[1768725012847,0.95491452,3311.7,3310.7,0.97340258]
[1768725013146,0.32712748,3311.8,3310.7,0.97340258]
[1768725013347,0.95493117,3311.7,3310.7,0.97340258]
[1768725013548,0.32712748,3311.8,3310.7,0.97340258]
[1768725013748,0.95493138,3311.7,3310.7,0.97340258]
[1768725014058,0.32712748,3311.8,3310.7,0.97340258]
[1768725014247,0.95493156,3311.7,3310.7,0.97340258]
[1768725014447,0.32712748,3311.8,3310.7,0.97340258]
[1768725014745,0.95496249,3311.7,3310.7,0.97340258]
[1768725014945,0.32712748,3311.8,3310.7,0.97340258]
[1768725015148,0.95496249,3311.7,3310.7,0.97340258]
[1768725015352,0.32712748,3311.8,3310.7,0.97340258]
[1768725015549,0.95500876,3311.7,3310.7,0.97340258]
[1768725015849,0.32712748,3311.8,3310.7,0.97340258]
[1768725016046,0.95500839,3311.7,3310.7,0.97340258]
[1768725016247,0.32712748,3311.8,3310.7,0.97340258]
[1768725016550,0.95507377,3311.7,3310.7,0.97340258]
[1768725016746,0.32712748,3311.8,3310.7,0.97340258]
[1768725016946,0.95507377,3311.7,3310.7,0.97340258]
[1768725017148,0.32712748,3311.8,3310.7,0.97340258]
[1768725017348,0.9551583,3311.7,3310.7,0.97340258]
[1768725017550,0.32712748,3311.8,3310.7,0.97340258]
[1768725017849,0.9551583,3311.7,3310.7,0.97340258]
[1768725018050,0.32712748,3311.8,3310.7,0.97340258]
[1768725018253,0.95515811,3311.7,3310.7,0.97340258]
[1768725018550,0.32712748,3311.8,3310.7,0.97340258]
[1768725018753,0.95526497,3311.7,3310.7,0.97340258]
[1768725018951,0.32712748,3311.8,3310.7,0.97340258]
[1768725019251,0.95526497,3311.7,3310.7,0.97340258]
[1768725019446,0.95526497,3311.6,3310.7,0.97340258]
[1768725019645,0.32712748,3311.8,3310.7,0.97340258]
[1768725019852,0.95539625,3311.7,3310.7,0.97340258]
[1768725020053,0.95539625,3311.6,3310.7,0.97340258]
[1768725020254,0.32712748,3311.8,3310.7,0.97340258]
[1768725020457,0.95553012,3311.7,3310.7,0.97340258]
[1768725020658,0.95553012,3311.6,3310.7,0.97340258]
[1768725020859,0.32712748,3311.8,3310.7,0.97340258]
[1768725021160,0.95553012,3311.7,3310.7,0.97340258]
[1768725021350,0.95553012,3311.6,3310.7,0.97340258]
[1768725021546,0.32712748,3311.8,3310.7,0.97340258]
[1768725021748,0.95558561,3311.7,3310.7,0.97340258]
[1768725021953,0.95558561,3311.6,3310.7,0.97340258]
[1768725022149,0.32712748,3311.8,3310.7,0.97340258]
[1768725022347,0.95563417,3311.7,3310.7,0.97340258]
[1768725022559,0.95563417,3311.6,3310.7,0.97340258]
[1768725022745,0.32712748,3311.8,3310.7,0.97340258]
[1768725022950,0.95563417,3311.7,3310.7,0.97340258]
[1768725023145,0.95563417,3311.6,3310.7,0.97340258]
[1768725023346,0.32712748,3311.8,3310.7,0.97340258]
[1768725023559,0.95568996,3311.7,3310.7,0.97340258]
[1768725023749,0.95568996,3311.6,3310.7,0.97340258]
[1768725023953,0.32712748,3311.8,3310.7,0.97340258]
[1768725024154,0.95568996,3311.7,3310.7,0.97340258]
[1768725024363,0.95568996,3311.6,3310.7,0.97340258]
[1768725024564,0.32712748,3311.8,3310.7,0.97340258]
[1768725024766,0.95016349,3311.7,3310.7,0.97340258]
[1768725024961,0.95016349,3311.6,3310.7,0.97340258]
[1768725025157,0.32712748,3311.8,3310.7,0.97340258]
[1768725025358,0.95024316,3311.7,3310.7,0.97340258]
[1768725025559,0.95024316,3311.6,3310.7,0.97340258]
[1768725025759,0.32712748,3311.8,3310.7,0.97340258]
[1768725025960,0.95024316,3311.7,3310.7,0.97340258]
[1768725026158,0.95024316,3311.6,3310.7,0.97340258]
[1768725026359,0.32712748,3311.8,3310.7,0.97340258]
[1768725026554,0.95033965,3311.7,3310.7,0.97340258]
[1768725026760,0.95033965,3311.6,3310.7,0.97340258]
[1768725027057,0.32712748,3311.8,3310.7,0.97340258]
[1768725027259,0.95033965,3311.7,3310.7,0.97340258]
[1768725027561,0.95033965,3311.6,3310.2,0.00217076]
[1768725027760,0.95033965,3311.5,3310.7,0.97340258]
[1768725027966,0.32712748,3311.8,3310.7,0.97340258]
[1768725028168,0.95045861,3311.7,3310.7,0.97340258]
[1768725028356,0.95045861,3311.6,3310.7,0.97340258]
[1768725028559,0.95045861,3311.5,3310.7,0.97340258]
[1768725028869,0.32712748,3311.8,3310.7,0.97340258]
[1768725029166,0.95060842,3311.7,3310.7,0.97340258]
[1768725029367,0.95060842,3311.6,3310.7,0.97340258]
[1768725029568,0.95060842,3311.5,3310.7,0.97340258]
[1768725029870,0.32712748,3311.8,3310.7,0.97340258]
[1768725030079,0.95081495,3311.7,3310.7,0.97340258]
[1768725030256,0.95081495,3311.6,3310.7,0.97340258]
[1768725030456,0.95081495,3311.5,3310.7,0.97340258]
[1768725030671,0.32712748,3311.8,3310.7,0.97340258]
[1768725030880,0.95082399,3311.7,3310.7,0.97340258]
[1768725031060,0.95082399,3311.6,3310.7,0.97340258]
[1768725031263,0.95133014,3311.5,3310.7,0.97340258]
[1768725031561,0.32712748,3311.8,3310.7,0.97340258]
[1768725031875,0.95133013,3311.7,3310.7,0.97340258]
[1768725032070,0.95133013,3311.6,3310.7,0.97340258]
[1768725032374,0.95133013,3311.5,3310.9,0.97340258]
[1768725032575,0.32336348,3312.2,3310.9,0.97340258]
[1768725032766,0.95129122,3312.1,3310.9,0.97340258]
[1768725032958,0.32336348,3312.2,3310.9,0.97340258]
[1768725032959,0.95129122,3312.0,3310.9,0.97340258]
[1768725033163,0.95129122,3311.9,3310.9,0.97340258]
[1768725033363,0.95129122,3311.8,3310.9,0.97340258]
[1768725033674,0.95129122,3311.7,3311.2,0.97340258]
[1768725033875,0.32336348,3312.2,3311.2,0.97340258]
[1768725034077,0.95110015,3312.1,3311.2,0.97340258]
[1768725034272,0.95110015,3312.0,3311.2,0.97340258]
[1768725034474,0.95110015,3311.9,3311.2,0.97340258]
[1768725034663,0.32336348,3312.2,3311.2,0.97340258]
[1768725034864,0.95080402,3312.1,3311.2,0.97340258]
[1768725035072,0.95080402,3312.0,3311.2,0.97340258]
[1768725035271,0.95080402,3311.9,3311.2,0.97340258]
[1768725035571,0.32336348,3312.2,3311.2,0.97340258]
[1768725035771,0.95063261,3312.1,3311.2,0.97340258]
[1768725035971,0.95063261,3312.0,3311.2,0.97340258]
[1768725036174,0.95063261,3311.9,3311.2,0.97340258]
[1768725036369,0.32336348,3312.2,3311.2,0.97340258]
[1768725036573,0.95050618,3312.1,3311.1,0.97340258]
[1768725036774,0.95050618,3312.0,3311.1,0.97340258]
[1768725036973,0.95050618,3311.9,3311.1,0.97340258]
[1768725037278,0.32336348,3312.2,3311.1,0.97340258]
[1768725037474,0.95040499,3312.1,3311.1,0.97340258]
[1768725037677,0.95040499,3312.0,3311.1,0.97340258]
[1768725037873,0.95040499,3311.9,3311.1,0.97340258]
[1768725038075,0.32336348,3312.2,3311.1,0.97340258]
[1768725038380,0.9504052,3312.1,3311.1,0.97340258]
[1768725038676,0.9504052,3312.0,3311.1,0.97340258]
[1768725038879,0.9504052,3311.9,3311.1,0.97340258]
[1768725039078,1.29676606,3312.2,3310.9,0.97340258]
[1768725039278,0.95032367,3312.1,3310.9,0.97340258]
[1768725039480,0.95032367,3312.0,3310.9,0.97340258]
[1768725039788,0.95032367,3311.9,3310.7,0.97340258]
[1768725039983,1.32713321,3312.0,3310.7,0.97340258]
[1768725040281,0.95025747,3311.9,3310.7,0.97340258]
[1768725040577,1.32713321,3312.0,3310.7,0.97340258]
[1768725040773,1.32713321,3311.8,3310.5,0.97340258]
[1768725040974,0.35373063,3311.7,3310.5,0.97340258]
[1768725041575,0.35373063,3311.7,3310.8,0.97340258]
[1768725041776,0.35687697,3312.2,3311.0,0.97340258]
[1768725041976,0.95017516,3312.1,3311.0,0.97340258]
[1768725042177,0.95017516,3312.0,3311.0,0.97340258]
[1768725042379,0.95017516,3311.9,3311.0,0.97340258]
[1768725042571,0.35687697,3312.2,3311.0,0.97340258]
[1768725042874,0.95013959,3312.1,3311.0,0.97340258]
[1768725043176,0.95013959,3312.0,3311.0,0.97340258]
[1768725043379,0.95013959,3311.9,3311.0,0.97340258]
[1768725043579,0.35687697,3312.2,3311.0,0.97340258]
[1768725043776,0.95010964,3312.1,3311.0,0.97340258]
[1768725043980,0.35687697,3312.2,3311.0,0.97340258]
[1768725043981,0.95010964,3312.0,3311.0,0.97340258]
[1768725044186,0.95010964,3311.9,3311.0,0.97340258]
[1768725044483,0.35687697,3312.2,3311.0,0.97340258]
[1768725044677,0.95008548,3312.1,3311.0,0.97340258]
[1768725044877,0.95008548,3312.0,3311.0,0.97340258]
[1768725045079,0.95008548,3311.9,3311.0,0.97340258]
[1768725045279,0.35687697,3312.2,3311.0,0.97340258]
[1768725045483,0.95006806,3312.1,3311.0,0.97340258]
[1768725045677,0.95006806,3312.0,3311.0,0.97340258]
[1768725045878,0.95006806,3311.9,3311.0,0.97340258]
[1768725046078,0.35687697,3312.2,3311.0,0.97340258]
[1768725046277,0.95006774,3312.1,3311.0,0.97340258]
[1768725046477,0.95006774,3312.0,3311.0,0.97340258]
[1768725046682,0.95006774,3311.9,3311.0,0.97340258]
[1768725046881,0.35687697,3312.2,3311.0,0.97340258]
[1768725047082,0.95005513,3312.1,3311.0,0.97340258]
[1768725047294,0.95005513,3312.0,3310.5,1.29697903]
[1768725047478,0.95005513,3311.9,3310.5,1.29697903]
[1768725047680,0.35687697,3312.2,3310.5,1.29697903]
[1768725047981,0.95005866,3312.1,3310.5,1.29697903]
[1768725048180,0.95005866,3312.0,3310.5,1.29697903]
[1768725048381,0.95005866,3311.9,3310.6,0.32348777]
[1768725048581,0.35687697,3312.2,3310.6,0.32348777]
[1768725048781,0.95004857,3312.1,3310.6,0.32348777]
[1768725048988,0.95004857,3312.0,3310.6,0.32348777]
[1768725049282,0.95004857,3311.9,3310.6,0.32348777]
[1768725049487,0.35687697,3312.2,3310.6,0.32348777]
[1768725049690,0.95005282,3312.1,3310.6,0.32348777]
[1768725049987,0.95005282,3312.0,3310.6,0.32348777]
[1768725050178,0.95005282,3311.9,3310.6,0.32348777]
[1768725050379,0.35687697,3312.2,3310.6,0.32348777]
[1768725050580,0.9500633,3312.1,3310.6,0.32348777]
[1768725050779,0.9500633,3312.0,3310.6,0.32348777]
[1768725051078,0.9500633,3311.9,3310.6,0.32348777]
[1768725051274,0.35687697,3312.2,3310.6,0.32348777]
[1768725051479,0.95008002,3312.1,3310.6,0.32348777]
[1768725051676,0.95008002,3312.0,3310.6,0.32348777]
[1768725051891,0.95008002,3311.9,3310.6,0.32348777]
[1768725052091,0.35687697,3312.2,3310.6,0.32348777]
[1768725052291,0.95008579,3312.1,3310.6,0.32348777]
[1768725052590,0.95008579,3312.0,3310.6,0.32348777]
[1768725052787,0.35687697,3312.2,3310.6,0.32348777]
[1768725052987,0.95008573,3312.1,3310.6,0.32348777]
[1768725053194,0.95008573,3312.0,3310.6,0.32348777]
[1768725053383,0.35687697,3312.2,3310.6,0.32348777]
[1768725053583,0.95010541,3312.1,3310.6,0.32348777]
[1768725053783,0.95010541,3312.0,3310.6,0.32348777]
[1768725053983,0.35687697,3312.2,3310.6,0.32348777]
[1768725054185,0.95010541,3312.1,3310.6,0.32348777]
[1768725054478,0.95010541,3312.0,3310.6,0.32348777]
[1768725054784,0.35687697,3312.2,3310.6,0.32348777]
[1768725054983,0.95518156,3312.1,3310.6,0.32348777]
[1768725055184,0.95518156,3312.0,3310.6,0.32348777]
[1768725055384,0.95518156,3311.9,3310.6,0.32348777]
[1768725055584,0.35687697,3312.2,3310.6,0.32348777]
[1768725055785,0.95522037,3312.1,3310.6,0.32348777]
[1768725055985,0.95522037,3312.0,3310.6,0.32348777]
[1768725056184,0.95522037,3311.9,3310.6,0.32348777]
[1768725056391,0.35687697,3312.2,3310.6,0.32348777]
[1768725056601,0.95526995,3312.1,3310.6,0.32348777]
[1768725056892,0.95526995,3312.0,3310.6,0.32348777]
[1768725057092,0.95526995,3311.9,3310.6,0.32348777]
[1768725057294,0.35687697,3312.2,3310.6,0.32348777]
[1768725057496,0.95533053,3312.1,3310.6,0.32348777]
[1768725057694,0.95533053,3312.0,3310.6,0.32348777]
[1768725057895,0.95533053,3311.9,3310.6,0.32348777]
[1768725058096,0.35687697,3312.2,3310.6,0.32348777]
[1768725058398,0.95540715,3312.1,3310.6,0.32348777]
[1768725058697,0.95540715,3312.0,3310.6,0.32348777]
[1768725058897,0.95540715,3311.9,3310.6,0.32348777]
[1768725059088,0.35687697,3312.2,3310.6,0.32348777]
[1768725059287,0.95550258,3312.1,3310.6,0.32348777]
[1768725059489,0.95550258,3312.0,3310.6,0.32348777]
[1768725059688,0.95550258,3311.9,3310.6,0.32348777]
[1768725059892,0.35687697,3312.2,3310.6,0.32348777]
[1768725060190,0.95550258,3312.1,3310.6,0.32348777]
[1768725060489,0.95550258,3312.0,3310.6,0.32348777]
[1768725060691,0.95550258,3311.9,3310.6,0.32348777]
[1768725060890,0.35687697,3312.2,3310.6,0.32348777]
[1768725061090,0.95561501,3312.1,3310.9,0.97349126]
[1768725061295,0.95561501,3312.0,3310.9,0.97349126]
[1768725061495,0.95561501,3311.9,3310.9,0.97349126]
[1768725061699,0.35687697,3312.2,3310.9,0.97349126]
[1768725061893,0.9557617,3312.1,3310.9,0.97349126]
[1768725062094,0.9557617,3312.0,3310.9,0.97349126]
[1768725062400,0.9557617,3311.9,3310.9,0.97349126]
[1768725062593,0.35687697,3312.2,3310.9,0.97349126]
[1768725062794,0.95595643,3312.1,3310.9,0.97349126]
[1768725062994,0.95595643,3312.0,3310.9,0.97349126]
[1768725063196,0.95595643,3311.9,3310.9,0.97349126]
[1768725063493,0.35687697,3312.2,3310.9,0.97349126]
[1768725063695,0.95608964,3312.1,3310.9,0.97349126]
[1768725063994,0.35687697,3312.2,3310.9,0.97349126]
[1768725063995,0.95608964,3312.0,3310.9,0.97349126]
[1768725064298,0.95608964,3311.9,3310.9,0.97349126]
[1768725064498,0.35687697,3312.2,3310.9,0.97349126]
[1768725064698,0.95604915,3312.1,3310.9,0.97349126]
[1768725064901,0.95604915,3312.0,3310.9,0.97349126]
[1768725065100,0.95604915,3311.9,3310.9,0.97349126]
[1768725065296,0.35687697,3312.2,3310.9,0.97349126]
[1768725065501,0.95600363,3312.1,3310.9,0.97349126]
[1768725065702,0.95600363,3312.0,3310.9,0.97349126]
[1768725065903,0.00314634,3312.2,3310.9,0.97349126]
[1768725066101,0.95599651,3312.1,3310.9,0.97349126]
[1768725066305,0.00314634,3312.2,3310.9,0.97349126]
[1768725066600,0.95578018,3312.1,3310.9,0.97349126]
[1768725066801,0.00314634,3312.2,3310.9,0.97349126]
[1768725067002,0.95578021,3312.1,3310.9,0.97349126]
[1768725067205,0.00314634,3312.2,3310.9,0.97349126]
[1768725067409,0.95577331,3312.1,3310.9,0.97349126]
[1768725067613,0.00314634,3312.2,3310.9,0.97349126]
[1768725070907,0.00314634,3312.2,3310.9,1.32303035]
[1768725077421,0.00314634,3312.2,3310.9,1.46903035]
[1768725078617,0.00314634,3312.2,3311.0,0.34953909]
[1768725081019,0.00314634,3312.2,3311.3,0.97349126]
[1768725082217,0.34823392,3312.6,3311.3,0.97349126]
[1768725082521,0.95492578,3312.5,3311.3,1.31168899]
[1768725082727,0.33577585,3313.0,3311.3,1.31168899]
[1768725082925,0.15097,3313.1,3311.3,1.31168899]
[1768725082926,0.33577585,3312.8,3311.3,1.31168899]
[1768725083224,0.95484656,3312.7,3311.3,1.31168899]
[1768725083527,0.95484656,3312.6,3311.3,1.31168899]
[1768725083728,0.33861541,3312.8,3311.3,1.31168899]
[1768725083928,0.95477762,3312.7,3311.3,1.31168899]
[1768725084226,0.95477762,3312.6,3311.3,1.31168899]
[1768725084429,0.33861541,3312.8,3311.3,1.31168899]
[1768725084630,0.95471293,3312.7,3311.3,1.31168899]
[1768725084929,0.95471293,3312.6,3311.3,0.97349126]
[1768725085130,0.33861541,3312.8,3311.3,0.97349126]
[1768725085323,1.28691251,3312.7,3311.3,0.97349126]
[1768725085526,0.95113666,3312.6,3311.3,0.97349126]
[1768725085724,0.33577585,3312.7,3311.3,0.97349126]
[1768725085917,0.95107083,3312.6,3311.3,0.97349126]
[1768725086122,0.33577585,3312.7,3311.3,0.97349126]
[1768725086320,0.95110064,3312.6,3311.3,0.97349126]
[1768725086524,0.33577585,3312.7,3311.3,0.97349126]
[1768725086725,0.95104825,3312.6,3311.3,0.97349126]
[1768725086927,0.33577585,3312.7,3311.3,0.97349126]
[1768725087134,0.95104828,3312.6,3311.3,0.97349126]
[1768725087333,0.33577585,3312.7,3311.3,0.97349126]
[1768725087528,0.95104323,3312.6,3311.3,0.97349126]
[1768725087733,0.33577585,3312.7,3311.3,0.97349126]
[1768725087929,0.95104322,3312.6,3311.3,0.97349126]
[1768725088125,0.33577585,3312.7,3311.3,0.97349126]
[1768725088332,0.95108984,3312.6,3311.3,0.97349126]
[1768725088639,0.33577585,3312.7,3311.3,0.97349126]
[1768725088833,0.33577585,3312.5,3311.2,0.146]
[1768725089230,0.33577585,3312.5,3311.1,2.412]
[1768725092443,0.95130859,3312.4,3311.1,2.412]
[1768725092635,0.33577585,3312.5,3311.1,2.412]
[1768725092841,0.95132193,3312.4,3311.1,2.412]
[1768725093142,0.33577585,3312.5,3311.1,2.412]
[1768725093343,0.95132197,3312.4,3311.1,2.412]
[1768725093539,0.33577585,3312.5,3311.1,2.412]
[1768725093739,0.95143439,3312.4,3311.1,2.412]
[1768725093941,0.33577585,3312.5,3311.1,2.412]
[1768725094144,0.95143439,3312.4,3311.1,2.412]
[1768725094336,0.33577585,3312.5,3311.1,2.412]
[1768725094537,0.95154748,3312.4,3311.1,2.412]
[1768725094844,0.33577585,3312.5,3311.1,2.412]
[1768725095046,0.95154735,3312.4,3311.1,2.412]
[1768725095247,0.33577585,3312.5,3311.1,2.412]
[1768725095545,0.9516639,3312.4,3311.1,2.412]
[1768725095738,0.33577585,3312.5,3311.1,2.412]
[1768725095941,0.95166388,3312.4,3311.1,2.412]
[1768725096132,0.33577585,3312.5,3311.1,2.412]
[1768725096337,0.95166387,3312.4,3311.1,2.412]
[1768725096645,0.33577585,3312.5,3311.1,2.412]
[1768725096849,0.95169561,3312.4,3311.1,2.412]
[1768725097049,0.33577585,3312.5,3311.1,2.412]
[1768725097345,0.95169541,3312.4,3311.1,2.412]
[1768725097547,0.33577585,3312.5,3311.1,2.412]
[1768725097741,0.95173258,3312.4,3311.1,2.412]
[1768725097943,0.33577585,3312.5,3311.1,2.412]
[1768725098141,0.95173281,3312.4,3311.1,2.412]
[1768725098342,0.33577585,3312.5,3311.1,2.412]
[1768725098551,0.95176125,3312.4,3311.1,2.412]
[1768725098858,0.33577585,3312.5,3311.1,2.412]
[1768725099042,0.95176088,3312.4,3311.1,2.412]
[1768725099241,0.33577585,3312.5,3311.1,2.412]
[1768725099446,0.95179351,3312.4,3311.1,2.412]
[1768725099643,0.33577585,3312.5,3311.1,2.412]
[1768725099835,0.95179306,3312.4,3311.1,2.412]
[1768725100041,0.33577585,3312.5,3311.1,2.412]
[1768725100242,0.95179304,3312.4,3311.1,2.412]
[1768725100450,0.33577585,3312.5,3311.1,2.412]
[1768725100646,0.95183055,3312.4,3311.1,2.412]
[1768725100850,0.33577585,3312.5,3311.1,2.412]
[1768725101051,0.95183054,3312.4,3311.1,2.412]
[1768725101242,0.33577585,3312.5,3311.1,2.412]
[1768725101442,0.95186405,3312.4,3311.1,2.412]
[1768725101648,0.33577585,3312.5,3311.1,2.412]
[1768725101844,0.95186404,3312.4,3311.1,2.412]
[1768725102050,0.33577585,3312.5,3311.1,2.412]
[1768725102253,0.95186403,3312.4,3311.1,2.412]
[1768725102453,0.33577585,3312.5,3311.1,2.412]
[1768725102751,0.95190257,3312.4,3311.1,2.412]
[1768725102950,0.33577585,3312.5,3311.1,2.412]
[1768725103153,0.95190254,3312.4,3311.1,2.412]
[1768725103353,0.33577585,3312.5,3311.1,2.412]
[1768725103557,0.95194679,3312.4,3311.1,2.412]
[1768725103746,0.33577585,3312.5,3311.1,2.412]
[1768725104043,0.95194677,3312.4,3311.1,2.412]
[1768725104236,0.33577585,3312.5,3311.1,2.412]
[1768725104438,0.95195822,3312.4,3311.1,2.412]
[1768725104641,0.33577585,3312.5,3311.1,2.412]
[1768725104838,0.95199803,3312.4,3311.1,2.412]
[1768725105041,0.33577585,3312.5,3311.1,2.412]
[1768725105246,0.95199802,3312.4,3311.1,2.412]
[1768725105447,0.33577585,3312.5,3311.1,2.412]
[1768725105647,0.95205807,3312.4,3311.1,2.412]
[1768725105848,0.33577585,3312.5,3311.1,2.412]
[1768725106049,0.95205805,3312.4,3311.1,2.412]
[1768725106252,0.33577585,3312.5,3311.1,2.412]
[1768725106452,0.95212991,3312.4,3311.1,2.412]
[1768725106651,0.33577585,3312.5,3311.1,2.412]
[1768725106851,0.95213007,3312.4,3311.1,2.412]
[1768725107054,0.33577585,3312.5,3311.1,2.412]
[1768725107356,0.95212988,3312.4,3311.1,2.412]
[1768725107555,0.33577585,3312.5,3311.1,2.412]
[1768725107852,0.95217533,3312.4,3311.1,2.412]
[1768725108053,0.33577585,3312.5,3311.1,2.412]
[1768725108351,0.95217532,3312.4,3311.1,2.412]
[1768725108551,0.33577585,3312.5,3311.1,2.412]
[1768725108755,0.95220849,3312.4,3311.1,2.412]
[1768725108948,0.33577585,3312.5,3311.1,2.412]
[1768725109150,0.95220854,3312.4,3311.1,2.412]
[1768725109453,0.33577585,3312.5,3311.4,0.97323361]
[1768725109652,0.95223436,3312.4,3311.4,0.97323361]
[1768725109852,0.33577585,3312.5,3311.4,0.97323361]
[1768725110055,0.9522345,3312.4,3311.4,0.97323361]
[1768725110246,0.33577585,3312.5,3311.4,0.97323361]
[1768725110548,0.95225685,3312.4,3311.6,0.97323361]
[1768725110748,0.33577585,3312.5,3311.6,0.97323361]
[1768725110948,0.9522569,3312.4,3311.1,2.76289598]
[1768725111247,0.00283956,3312.8,3311.6,0.97323361]
[1768725111554,0.95226676,3312.7,3311.6,0.97323361]
[1768725111754,0.95226676,3312.6,3311.6,0.97323361]
[1768725111957,0.95226676,3312.5,3311.6,0.97323361]
[1768725112157,0.95226676,3312.4,3311.6,0.97323361]
[1768725112455,0.00283956,3312.8,3311.6,0.97323361]
[1768725112655,0.95225942,3312.7,3311.6,0.97323361]
[1768725112848,0.95225942,3312.6,3311.6,0.97323361]
[1768725113052,0.95225942,3312.5,3311.6,0.97323361]
[1768725113355,0.95225942,3312.4,3311.6,0.97323361]
[1768725113555,0.00283956,3312.8,3311.6,0.97323361]
[1768725113757,0.95226198,3312.7,3311.6,0.97323361]
[1768725113955,0.95226198,3312.6,3311.6,0.97323361]
[1768725114156,0.95226198,3312.5,3311.6,0.97323361]
[1768725114356,0.95226198,3312.4,3311.6,0.97323361]
[1768725114552,0.00283956,3312.8,3311.6,0.97323361]
[1768725114759,0.94941676,3312.7,3311.6,0.97323361]
[1768725114962,0.94941676,3312.6,3311.6,0.97323361]
[1768725115161,0.94941676,3312.5,3311.6,0.97323361]
[1768725115454,0.00283956,3312.8,3311.8,0.97323361]
[1768725115656,0.94942201,3312.7,3311.6,0.97323361]
[1768725115954,0.94942201,3312.6,3311.6,0.97323361]
[1768725116155,0.94942201,3312.5,3311.6,0.97323361]
[1768725116453,0.94942201,3312.4,3311.6,0.97323361]
[1768725116655,0.00283956,3312.8,3311.6,0.97323361]
[1768725116855,0.94943044,3312.7,3311.6,0.97323361]
[1768725117047,0.94943044,3312.6,3311.6,0.97323361]
[1768725117345,0.94943044,3312.5,3311.6,0.97323361]
[1768725117547,0.94943044,3312.4,3311.6,0.97323361]
[1768725117758,0.00283956,3312.8,3311.6,0.97323361]
[1768725117959,0.94943883,3312.7,3311.6,0.97323361]
[1768725118162,0.94943883,3312.6,3311.6,0.97323361]
[1768725118357,0.94943883,3312.5,3311.6,0.97323361]
[1768725118651,0.94943883,3312.4,3311.6,0.97323361]
[1768725118853,0.00283956,3312.8,3311.6,0.97323361]
[1768725119055,0.94944687,3312.7,3311.6,0.97323361]
[1768725119247,0.94944687,3312.6,3311.6,0.97323361]
[1768725119551,0.94944687,3312.5,3311.6,0.97323361]
[1768725119752,0.00283956,3312.8,3311.6,0.97323361]
[1768725119949,0.94942842,3312.7,3311.6,0.97323361]
[1768725120158,0.94942842,3312.6,3311.6,0.97323361]
[1768725120359,0.94942842,3312.5,3311.6,0.97323361]
[1768725120658,0.00283956,3312.8,3311.6,0.97323361]
[1768725120852,0.94942315,3312.7,3311.6,0.97323361]
[1768725121051,0.94942315,3312.6,3311.6,0.97323361]
[1768725121253,0.94942315,3312.5,3311.6,0.97323361]
[1768725121455,0.00283956,3312.8,3311.6,0.97323361]
[1768725121648,0.94939885,3312.7,3311.8,0.97323361]
[1768725121948,0.94939885,3312.6,3311.8,0.97323361]
[1768725122257,0.94939885,3312.5,3311.8,0.97323361]
[1768725122455,0.00283956,3312.8,3311.8,0.97323361]
[1768725122661,0.94937999,3312.7,3311.8,0.97323361]
[1768725122864,0.94937999,3312.6,3311.8,0.97323361]
[1768725123065,0.94937999,3312.5,3311.8,0.97323361]
[1768725123261,0.00283956,3312.8,3311.8,0.97323361]
[1768725123562,0.94936494,3312.7,3311.8,0.97323361]
[1768725123759,0.94936494,3312.6,3311.8,0.97323361]
[1768725123962,0.94936494,3312.5,3311.8,0.97323361]